Cogmind - Beta 15 @@@ ROGUE MODE // 2025.05.31 @ 19:16:19 Player: Zaros426 Result: Destroyed by H-77 Assassin with Coil Gun Performance ------------- Evolutions (7) 3500 Regions Visited (18) 3600 Robots Destroyed (269) 1345 Value Destroyed (11698) 11698 Prototype IDs (72) 1440 Alien Tech Used (0) 0 Bonus (8813) 8813 TOTAL SCORE: 30396 Bonus ------- High Alert Combat Kills 1176 Follower Combat Kills 1317 Registered with UFD 300 Met Optimus in HQ 500 Met Imprinter 300 Destroyed Z-Imprinter 1000 Triggered Deep Caves Wall 500 Exposed GOLEM Chamber 500 Met Warlord at Base 500 MAIN.C Attacked Warlord 500 Warlord Defense Kills 2980 Friendly Fire -760 Cogmind --------- Core Integrity 0/1300 Matter 300/300 Energy 100/100 System Corruption 8% Temperature Cool (0) Movement Core (50) Location -3/Research Parts ------- > --- POWER (2) -------- (None) > --- PROPULSION (8) --- Multireflex Exoskeleton Multireflex Exoskeleton > --- UTILITY (8) ------ Machine Analyzer Experimental Optical Array Improved System Guard > --- WEAPON (3) ------- (None) > --- INVENTORY (5) ---- Vampiric Humpback Fusion Bomb Launcher Improved Plasma Cutter Peak State ------------ > --- POWER ------------ Improved Deuterium Engine > --- PROPULSION ------- Myomer Leg Assembled Alloy Leg Heavy Shield Leg Overtuned Huge Scrapsphere > --- UTILITY ---------- Vampiric Humpback Experimental Sensor Array Surveybot 24 Scanner Surveybot 24 Chip 0b10 Decoder Chip [Looter] Gun Armor Improved Powered Armor > --- WEAPON ----------- Plasma Storm > --- INVENTORY -------- Medium Treads Medium Treads Medium Treads Medium Treads Medium Treads Medium Treads Overtuned Huge Scrapsphere Zionite Biocell Zionite Biocell High-capacity Matter Pod Structural Scanner Machine Analyzer Makeshift Transmission Jammer Makeshift ECM Suite Layered Medium Armor Plating Advanced Thermal Shield Improved Force Field Drone Bay Hacking Drone Bay Improved Lightning Gun Improved Lightning Gun Improved Lightning Gun Vortex Rifle Vortex Rifle Cooled Plasma Cannon Cooled Plasma Cannon Ion Burst Cannon Heavy Gauss Cannon Tiamat Missile Launcher Vortex Catalyst Activator Improved Datajack Improved Plasma Cutter CPS Tube [Rating: 160] Favorites ----------- Power Neutrino Core Engine Improved Deuterium Engine Power Core Neutrino Core Reactor Particle Reactor Propulsion Overtuned Huge Scrapsphere Treads Light Treads Leg Assembled Alloy Leg Wheel Overtuned Huge Scrapsphere Hover Unit Zionite Glidesys II Flight Unit Cooled VTOL Module Utility Vampiric Humpback Device Structural Scanner Storage Vampiric Humpback Processor Core Analyzer Hackware Makeshift Hacking Suite Protection Hardened Medium Armor Plating Weapon Cooled Plasma Cannon Energy Gun Subdweller Laser Energy Cannon Cooled Plasma Cannon Ballistic Gun Subdweller Machine Gun Ballistic Cannon Mass Driver Launcher Subdweller Shrapnel Launcher Special Weapon Mining Laser Slashing Weapon Axe Special Melee Weapon Improved Datajack Build | -11 -10 -10 -10 -8 -8 -6 -6 -6 -6 -6 -5 -5 -5 -5 -5 -4 -4 -3 ------- Run | Yrd Mat Min Sub Rec Scr Fac Low Low Zio Dee Pro Fac Upp Upp War Pro Fac Res Slots Evolved 14 | . . . . . . 8 . . . . . 2 . . . . 2 2 Power 1 | . . . . . . . . . . . . . . . . . 1 . Propulsion 6 | . . . . . . 4 . . . . . . . . . . . 2 Utility 6 | . . . . . . 4 . . . . . 1 . . . . 1 . Weapon 1 | . . . . . . . . . . . . 1 . . . . . . Parts Attached 213 | 8 4 3 18 3 12 12 8 3 6 33 5 19 5 2 5 2 34 31 Power 18 | 1 . . 4 . 1 . 1 . 1 1 1 1 1 . 1 . 4 1 Engine 10 | 1 . . 4 . 1 . 1 . . . . 1 . . 1 . . 1 Core 5 | . . . . . . . . . 1 . . . 1 . . . 3 . Reactor 3 | . . . . . . . . . . 1 1 . . . . . 1 . Propulsion 50 | 2 . . 4 . 5 5 2 1 . 4 . 2 . . . . 10 15 Treads 30 | 2 . . 4 . 3 1 2 1 . . . . . . . . 9 8 Leg 8 | . . . . . . . . . . . . 1 . . . . 1 6 Wheel 8 | . . . . . 2 4 . . . 1 . . . . . . . 1 Hover 3 | . . . . . . . . . . 3 . . . . . . . . Flight 1 | . . . . . . . . . . . . 1 . . . . . . Utility 85 | 2 1 2 1 3 3 6 2 2 3 18 3 6 4 1 3 2 14 9 Device 32 | 1 . 1 1 2 1 3 1 1 1 5 2 1 2 . . 1 5 4 Storage 12 | 1 1 . . . 1 1 . . 2 2 . 1 . 1 . . 2 . Processor 14 | . . 1 . . . 2 . . . . 1 . 1 . . . 5 4 Hackware 5 | . . . . 1 . . . . . . . 3 . . . . . 1 Protection 22 | . . . . . 1 . 1 1 . 11 . 1 1 . 3 1 2 . Artifact . | . . . . . . . . . . . . . . . . . . . Weapon 60 | 3 3 1 9 . 3 1 3 . 2 10 1 10 . 1 1 . 6 6 Energy Gun 25 | 2 . . 2 . 2 . . . 1 8 1 3 . . 1 . 5 . Energy Cannon 6 | . . . . . . 1 . . . . . 2 . . . . . 3 Ballistic Gun 6 | 1 . . 3 . . . 1 . . 1 . . . . . . . . Ballistic Cannon 6 | . . . 1 . . . . . . . . 4 . . . . . 1 Launcher 11 | . 2 1 3 . . . 1 . . . . 1 . 1 . . 1 1 Special Weapon 2 | . 1 . . . . . . . . . . . . . . . . 1 Impact Weapon . | . . . . . . . . . . . . . . . . . . . Slashing Weapon 3 | . . . . . 1 . 1 . . 1 . . . . . . . . Piercing Weapon . | . . . . . . . . . . . . . . . . . . . Special Melee Weapon 1 | . . . . . . . . . 1 . . . . . . . . . Unidentified Prototypes 30 | . . . . 1 . 1 . . 1 12 1 4 . . 1 . 4 5 Parts Lost 77 | . . 1 2 . . . . . . 14 1 1 2 . 4 . 22 30 Power 8 | . . . . . . . . . . 1 . 1 1 . 1 . 2 2 Propulsion 24 | . . . 1 . . . . . . 1 . . . . 1 . 6 15 Utility 26 | . . 1 1 . . . . . . 6 . . 1 . 2 . 9 6 Weapon 19 | . . . . . . . . . . 6 1 . . . . . 5 7 Highest Loss Streak 19 | . . 1 1 . . . . . . 7 4 1 2 . 4 . 9 19 To Critical Strikes 2 | . . . . . . . . . . . . . . . . . . 2 Average Backups 23 | 1 11 14 14 14 13 14 25 30 30 32 26 32 33 33 33 32 29 20 Power . | . . . . . . 1 3 3 2 1 . . . 1 . . . . Propulsion 2 | . . 1 2 2 1 2 3 3 2 1 . 2 6 7 7 7 5 1 Utility 10 | . 5 6 7 7 7 5 10 11 12 18 16 16 12 13 12 12 11 10 Weapon 7 | 1 5 7 5 4 3 4 6 10 11 9 6 10 11 8 9 10 10 6 Tool/Special . | . . . . . . . . . . . . . . . . . . . Unused Backups 119 | 1 2 2 4 2 34 . 27 1 2 22 . 6 1 3 2 . . 10 Power 11 | . . . . . 3 . 4 . 1 3 . . . . . . . . Propulsion 12 | . . . 3 . 3 . 3 . . 3 . . . . . . . . Utility 57 | . 1 1 1 2 20 . 12 . 1 10 . 2 . 1 1 . . 5 Weapon 37 | 1 1 1 . . 7 . 8 1 . 6 . 4 1 2 1 . . 4 Tool/Special 2 | . . . . . 1 . . . . . . . . . . . . 1 Average Slot Usage (%) 78 | . 100 99 99 100 87 67 71 73 73 64 65 75 75 76 65 55 62 62 Engine 7 | . 14 14 14 14 13 6 6 6 5 . 1 1 . . . 5 . 1 Core 1 | . . . . . . . . . . 5 . . 2 5 4 . 4 2 Treads 13 | . 28 28 28 28 20 13 13 13 13 1 . . . . . . 8 18 Leg 3 | . . . . . . . . . . . 12 14 13 11 10 9 1 3 Wheel 5 | . . . . . 7 6 6 6 6 11 9 7 8 11 10 5 7 . Device 10 | . 14 . 13 12 5 9 13 18 19 9 15 6 12 10 10 13 9 5 Storage 9 | . 14 14 14 14 13 6 6 6 6 6 9 5 6 5 5 5 4 3 Processor 3 | . . 13 . . . 3 6 6 6 5 1 5 5 5 1 . 6 17 Protection 3 | . . . . . 5 6 3 1 . 8 . 1 5 5 9 9 8 . Energy Gun 9 | . 17 27 18 8 13 6 8 6 5 6 3 3 . . 3 5 4 1 Energy Cannon 2 | . . . . . . . . . . 1 6 6 14 14 4 . . 4 Ballistic Gun 2 | . . . 4 14 4 . . 6 3 3 . . . . . . . . Launcher 1 | . 10 . 3 5 . . 2 . . . . . . 1 1 . . . Peak Build Rating 160 | 7 10 10 16 23 25 67 68 74 79 104 122 120 119 120 147 146 160 145 Average Rating 66 | 5 8 8 13 16 19 54 62 68 69 89 98 110 114 115 131 138 137 100 On Entrance 62 | . 7 10 9 16 18 24 61 67 69 75 51 103 118 116 115 124 140 62 Naked Turns . | . . . . . . . . . . . . . . . . . . . Heaviest Build 275 | 15 34 30 38 38 209 230 233 233 242 242 251 255 260 256 260 264 275 263 Greatest Support 247 | 40 40 40 40 40 45 35 35 35 35 55 60 120 120 20 120 90 133 247 Greatest Overweight (x) 13 | . . . . . 9 6 6 6 6 10 12 12 12 12 12 13 13 4 Average Overweight (x) 4 | . . . . . 1 6 6 6 6 5 6 8 9 12 8 5 8 . Largest Inventory Capacity 35 | 8 15 15 15 15 35 35 35 35 35 35 35 35 35 35 35 35 35 35 Average Capacity 26 | 7 12 15 15 15 17 34 35 35 35 35 35 35 35 35 35 35 35 29 Most Carried 35 | 4 15 15 15 15 35 26 35 35 35 35 31 35 35 35 35 35 35 34 Average Carried 24 | 1 11 14 14 14 14 16 29 34 34 34 28 33 34 34 34 34 32 22 Final Capacity 35 | 8 15 15 15 15 15 35 35 35 35 35 35 35 35 35 35 35 35 5 Final Carried 35 | 3 15 15 15 15 15 25 33 35 35 32 30 35 35 35 34 35 26 4 Class Distribution -------------------- 31% | Hauler-Mutant 30% | Mutant 16% | Hauler-Skirmisher 5% | Hauler-Tank 5% | Hauler-Gunner 4% | Derelict-Mutant 4% | Commander-Mutant Dominant Class ---------------- Mutant | -10/Materials Mutant | -10/Mines Mutant | -10/Subcaves Mutant | -8/Recycling Mutant | -8/Scraptown Hauler-Mutant | -6/Factory Hauler-Mutant | -6/Lower Caves Hauler-Mutant | -6/Lower Caves Hauler-Mutant | -6/Zion Hauler-Mutant | -6/Deep Caves Hauler-Mutant | -5/Proximity Caves Hauler-Gunner | -5/Factory Hauler-Skirmisher | -5/Upper Caves Hauler-Skirmisher | -5/Upper Caves Hauler-Skirmisher | -5/Warlord Hauler-Skirmisher | -4/Proximity Caves Hauler-Tank | -4/Factory Hauler-Mutant | -3/Research Resources | -11 -10 -10 -10 -8 -8 -6 -6 -6 -6 -6 -5 -5 -5 -5 -5 -4 -4 -3 ----------- Run | Yrd Mat Min Sub Rec Scr Fac Low Low Zio Dee Pro Fac Upp Upp War Pro Fac Res Matter Collected 7317 | 280 362 65 548 181 1172 148 384 172 30 1046 332 602 358 227 151 101 338 820 Remotely . | . . . . . . . . . . . . . . . . . . . Salvage Created 13987 | 209 1138 136 462 143 . 59 494 50 . 1016 513 2099 767 223 1606 902 3001 1169 Parts 603 | 15 67 18 45 10 . 7 18 7 . 57 31 68 28 3 55 37 94 43 Haulers Intercepted 8 | . 2 . . . . . . . . . . 2 . . . 1 2 1 Recyclers Shooed 8 | . 2 . . . . 1 . . . . . 2 . . . . 1 2 Parts Field Recycled . | . . . . . . . . . . . . . . . . . . . Retrieved Matter . | . . . . . . . . . . . . . . . . . . . Parts Self-Destructed 141 | . . . 12 . . . 14 7 . . 65 . 15 3 . 25 . . Prevented 13 | . . . . . . . 2 . . . 2 . . 8 . 1 . . Kills | -11 -10 -10 -10 -8 -8 -6 -6 -6 -6 -6 -5 -5 -5 -5 -5 -4 -4 -3 ------- Run | Yrd Mat Min Sub Rec Scr Fac Low Low Zio Dee Pro Fac Upp Upp War Pro Fac Res Combat Hostiles Destroyed 229 | . 17 5 13 3 . . 9 1 . 41 8 22 10 5 24 17 42 12 Guns 39 | . 5 2 5 3 . . 4 1 . 5 3 4 . . . . 7 . Cannons 36 | . . . . . . . . . . 2 5 16 6 1 . . 3 3 AOE 135 | . 11 3 8 . . . 5 . . 31 . . 3 3 22 16 25 8 Classes Destroyed 28 | 3 4 1 2 3 . . 1 1 . 3 2 . 3 . 4 . 1 . Worker 17 | 2 5 2 . . . . . . . . . 3 . . . . 3 2 Builder 10 | . . . . 1 . 1 . . . . . 2 . . . . 4 2 Tunneler 11 | 6 . 1 . . . 2 . . . . . 1 . . . . 1 . Hauler 8 | . 2 . . . . . . . . . . 2 . . . 1 2 1 Recycler 14 | 1 2 . . . . . . . . . . 5 . . . . 3 3 Minesweeper 1 | . . . . . . . . . . . . . 1 . . . . . Mechanic 2 | . . . . . . . . . . . . . . . 1 . . 1 Operator 2 | . 1 . . . . . . . . . . . . . . . 1 . Turret 1 | . . . 1 . . . . . . . . . . . . . . . Watcher 5 | . 3 . . . . . . . . . . 2 . . . . . . Swarmer 28 | . . 3 4 1 . . 3 . . . 1 . 3 . . 9 4 . Grunt 102 | . 17 2 . . . . 4 . . . 5 11 4 4 19 7 22 7 Brawler 1 | . . . . . . . . . . . . . . . . . 1 . Duelist 7 | . . . . . . . . . . . 1 . 1 1 . 1 2 1 Protector 1 | . . . . . . . . . . . . . . . . . 1 . Sentry 8 | . . . . 1 . . 2 . . . . . 2 . . . 2 1 Specialist 1 | . . . . . . . . . . . . . . . 1 . . . Hunter 10 | . . . . 1 . . . . . . . 4 . . . . 3 2 Programmer 18 | . . . . . . . . 1 . . . 7 . . 2 . 7 1 Behemoth 2 | . . . . . . . . . . . 1 . . . 1 . . . Executioner 1 | . . . . . . . . . . . . . . . 1 . . . Subdweller 9 | . . . 9 . . . . . . . . . . . . . . . Botcube 1 | . . . . . . . 1 . . . . . . . . . . . Z-Technician 5 | . . . . . . . . . . 5 . . . . . . . . Z-Light 4 | . . . . . . . . . . 4 . . . . . . . . Samaritan 5 | . . . . . . . . . . . . . 5 . . . . . Assembled 33 | . . . . . . . . . . 33 . . . . . . . . Golem 3 | . . . . . . . . . . 3 . . . . . . . . Savage 1 | . . . . . . . . . . . . . 1 . . . . . Butcher 1 | . . . . . . . . . . . . . 1 . . . . . Mutant 1 | . . . . . . . . . . . . . . . 1 . . . Best Kill Streak 32 | 4 6 3 4 2 . 2 5 1 . 32 3 4 5 3 12 6 14 9 Combat Bots Only 32 | . 5 3 4 1 . . 5 1 . 32 3 4 5 3 11 6 12 6 Max Kills in Single Turn 7 | 1 3 2 3 1 . 1 3 1 . 7 1 4 2 2 7 5 4 7 Gunslinging . | . . . . . . . . . . . . . . . . . . . Exploded 7 | . 3 2 3 . . . 2 . . 7 . . 2 2 6 5 3 5 Melee . | . . . . . . . . . . . . . . . . . . . Uniques/NPCs Destroyed 1 | . . . . . . . . . . 1 . . . . . . . . Z-Imprinter (-6/Deep Caves) Combat | -11 -10 -10 -10 -8 -8 -6 -6 -6 -6 -6 -5 -5 -5 -5 -5 -4 -4 -3 -------- Run | Yrd Mat Min Sub Rec Scr Fac Low Low Zio Dee Pro Fac Upp Upp War Pro Fac Res Hostile Shots Fired 1664 | . 36 15 49 13 3 6 56 2 . 147 78 132 39 22 111 22 409 524 Missed 498 | . 12 4 20 2 2 3 25 1 . 40 20 37 18 8 39 6 125 136 Deflected 6 | . . . . . . . . . . . . 5 1 . . . . . Hits 1166 | . 24 11 29 11 1 3 31 1 . 107 58 95 21 14 72 16 284 388 Melee 16 | . . . . . . . . . . 11 . . . . 4 . 1 . Projectile 1150 | . 24 11 29 11 1 3 31 1 . 96 58 95 21 14 68 16 283 388 Critical Strikes 64 | . 1 . 2 . . . . . . 6 3 11 1 1 4 . 15 20 Actively Blocked 1 | . . . . . . . . . . 1 . . . . . . . . Part Disruptions 3 | . . . . . . . . . . 1 . 1 . . . . . 1 Actively Blocked 1 | . . . . . . . . . . 1 . . . . . . . . Damage Taken 22985 | . 322 148 395 126 12 11 257 21 . 2411 1166 1787 397 306 1890 488 5783 7465 Core 2212 | . 109 27 64 16 . 4 3 . . 203 176 81 24 19 216 39 411 820 Absorbed by Shields 573 | . . . . 24 . 6 101 2 . 135 . . . . . . 35 270 Redirected to Shielding 155 | . . . . . . . . . . 155 . . . . . . . . Ignored by Resistances 527 | . . . . . . . . . . . . 54 62 . . . . 411 Regen/Repaired (Parts) 567 | . . . . . . . . . 322 . . . . . 245 . . . Core Remaining (%) 36 | 100 . . . . 13 . . . . . 9 . . . . 26 34 . Volleys Fired 510 | 17 56 15 42 15 . . 18 3 3 60 17 82 26 14 6 10 64 62 Largest 3 | 2 2 2 2 2 . . 2 2 1 2 2 3 3 3 1 1 3 3 Hottest 300 | 100 100 100 120 90 . . 108 77 105 120 90 225 170 170 300 300 300 300 Shots Fired 933 | 34 109 27 59 30 . . 32 5 3 95 58 203 61 17 6 10 108 76 Gun 494 | 34 78 24 32 30 . . 30 5 . 74 32 51 . . 6 10 83 5 Cannon 342 | . . . 8 . . . . . 3 10 24 151 58 6 . . 17 65 Launcher 89 | . 28 3 14 . . . 2 . . 11 2 1 3 11 . . 8 6 Special 8 | . 3 . 5 . . . . . . . . . . . . . . . Kinetic 137 | . . . 28 15 . . 4 3 . 29 . 40 . . . . . 18 Thermal 596 | 34 81 24 29 15 . . 11 . 3 13 50 162 58 6 6 10 49 45 Explosive 34 | . . 3 2 . . . 2 . . 11 . 1 3 3 . . 4 5 Electromagnetic 119 | . 28 . . . . . 15 2 . 26 8 . . 8 . . 25 7 Entropic 31 | . . . . . . . . . . . . . . . . . 30 1 Phasic 16 | . . . . . . . . . . 16 . . . . . . . . Robot Hit Streak 22 | 4 9 7 10 7 . . 12 2 . 22 13 12 10 12 13 16 13 8 Robot Miss Streak 10 | 3 4 3 3 4 . . 1 1 . 4 5 5 5 1 4 10 7 2 Penetration Max 1 | . . . . . . . . . . 1 . 1 . . . . . . Secondary Targets 5 | . 1 . . . . . . . . 1 . . . . . . 3 . Max Gunslinging Chain 1 | . 1 . . . . . . . . 1 . . . . . . 1 . Autonomous 59 | . . . . . . . . . . . 26 33 . . . . . . Shots Hit Robots 581 | 20 58 14 24 18 . 4 25 3 . 53 42 129 39 14 6 7 84 41 Core Hits 581 | 10 40 11 22 5 . 2 15 1 . 103 19 55 17 13 71 41 120 36 Critical Kills 4 | . . . 1 . . . . . . . . 2 1 . . . . . Critical Parts Destroyed 1 | . . . . . . . . . . . . . . . . . 1 . Critical Strikes 26 | 2 7 1 1 1 . . 1 . . 1 . 5 1 . . . 2 4 Burn 11 | 2 7 1 . . . . 1 . . . . . . . . . . . Meltdown 2 | . . . . . . . . . . . . 1 1 . . . . . Destroy 3 | . . . 1 1 . . . . . . . 1 . . . . . . Blast 6 | . . . . . . . . . . . . 3 . . . . . 3 Corrupt 2 | . . . . . . . . . . . . . . . . . 1 1 Detonate 1 | . . . . . . . . . . . . . . . . . 1 . Intensify 1 | . . . . . . . . . . 1 . . . . . . . . Melee Attacks 31 | . . . . . 5 7 4 . . 6 . . 8 . 1 . . . Impact . | . . . . . . . . . . . . . . . . . . . Slashing 30 | . . . . . 5 7 4 . . 6 . . 8 . . . . . Piercing . | . . . . . . . . . . . . . . . . . . . Sneak Attacks 18 | . . . . . . 4 . . . 5 . . 8 . 1 . . . Combat Hostiles . | . . . . . . . . . . . . . . . . . . . Follow-up Attacks . | . . . . . . . . . . . . . . . . . . . Damage Inflicted 39999 | 262 1569 301 1353 372 . 290 1018 48 . 4394 1465 5081 2238 1120 4434 2120 10006 3928 Guns 7247 | 262 689 167 400 372 . . 421 48 . 941 733 1228 . . 81 70 1730 105 Cannons 7035 | . . . . . . . . . . 94 574 3302 1124 106 . . 353 1482 Explosions 24122 | . 869 134 953 . . . 391 . . 2899 158 538 530 1014 4343 2050 7923 2320 Melee 1540 | . . . . . . 290 206 . . 460 . . 584 . . . . . Ramming 55 | . 11 . . . . . . . . . . 13 . . 10 . . 21 Kinetic 3010 | . . . 855 184 . . 102 31 . 395 . 780 . . . . . 663 Thermal 20860 | 262 689 167 256 188 . . 450 . . 216 1196 4115 1124 106 4424 2120 4790 757 Explosive 6584 | . 291 134 242 . . . 116 . . 2811 . 173 530 539 . . 890 858 Electromagnetic 2482 | . 578 . . . . . 144 17 . 413 269 . . 475 . . 419 167 Impact . | . . . . . . . . . . . . . . . . . . . Slashing 1540 | . . . . . . 290 206 . . 460 . . 584 . . . . . Piercing . | . . . . . . . . . . . . . . . . . . . Entropic 5369 | . . . . . . . . . . . . . . . . . 3907 1462 Phasic 99 | . . . . . . . . . . 99 . . . . . . . . Highest Corruption 9 | . . . . . . . . . . 5 5 4 4 4 4 1 9 8 Average Corruption 3 | . . . . . . . . . . 4 3 2 4 4 3 1 4 7 Corruption Purged 15 | . . . . . . . . . . . 5 . . . . . 6 4 Corruption Blocked . | . . . . . . . . . . . . . . . . . . . Effects 137 | . . . . . . . . . . . 4 18 51 25 3 18 9 9 Message Errors 36 | . . . . . . . . . . . 2 4 12 6 . 8 2 2 Matter Fused 35 | . . . . . . . . . . . . 3 15 7 2 5 2 1 Heat Flow Errors 18 | . . . . . . . . . . . . 3 7 1 . 4 2 1 Energy Discharges 16 | . . . . . . . . . . . 1 3 4 2 1 . 1 4 Parts Rejected 1 | . . . . . . . . . . . . . . . . . . 1 Parts Fused 2 | . . . . . . . . . . . 1 . . 1 . . . . Data Loss (minor) 15 | . . . . . . . . . . . . 1 10 3 . 1 . . Data Loss (major) 3 | . . . . . . . . . . . . 1 . 2 . . . . Misfires 4 | . . . . . . . . . . . . 1 1 . . . 2 . Alerts 4 | . . . . . . . . . . . . 1 . 3 . . . . Weapon Failures 3 | . . . . . . . . . . . . 1 2 . . . . . Overload Shots 7 | . . . . . . . . . 3 . . 4 . . . . . . Overflow Damage 1850 | . 4 . 35 . . 38 107 . . 233 35 287 468 83 39 5 352 164 Projectiles 173 | . . . . . . . . . . . 19 89 . . . . 30 35 Explosions 1184 | . 4 . 35 . . . 5 . . 196 16 198 152 83 39 5 322 129 Melee 493 | . . . . . . 38 102 . . 37 . . 316 . . . . . Knockbacks 15 | . . . . . . . . . . . . 7 . . . . . 8 Impact . | . . . . . . . . . . . . . . . . . . . Kinetic 15 | . . . . . . . . . . . . 7 . . . . . 8 Secondary . | . . . . . . . . . . . . . . . . . . . Self-Inflicted Damage 1530 | . 15 42 14 . . . . . . 158 39 218 30 . 22 208 433 351 Shots 51 | . 1 2 1 . . . . . . 4 2 3 2 . 1 10 20 5 Rammed 2 | . 1 . . . . . . . . . . . . . . . . 1 Targets Rammed 9 | . 1 . . . . . . . . . . 2 . . 1 . . 5 Kicked 7 | . . . . . . . . . . . . 2 . . 1 . . 4 Crushed . | . . . . . . . . . . . . . . . . . . . Highest Temperature 470 | 234 216 264 18 75 . . 229 30 44 256 65 324 247 155 450 303 470 370 Average Temperature 84 | 85 55 79 10 21 . . 90 15 28 52 26 45 87 39 163 107 139 107 Received Heat Transfer 4320 | . 192 30 135 25 . . 72 . . 504 402 360 81 130 252 42 917 1178 Effects 13 | . . . . . . . . . . . . . . . 2 2 7 2 Shutdowns 3 | . . . . . . . . . . . . . . . 1 . 2 . Energy Bleed 2 | . . . . . . . . . . . . . . . . 1 1 . Interference 6 | . . . . . . . . . . . . . . . . 1 3 2 Short Circuit 2 | . . . . . . . . . . . . . . . 1 . 1 . Siege Activations 1 | . . . . . . . . . . . . . . . . . . 1 Total Turns 1 | . . . . . . . . . . . . . . . . . . 1 Longest Duration 1 | . . . . . . . . . . . . . . . . . . 1 Martial Activations . | . . . . . . . . . . . . . . . . . . . Shielding Activations 3 | . . . . . . . . . . . . 2 1 . . . . . Total Turns 60 | . . . . . . . . . . . . 34 26 . . . . . Longest Duration 26 | . . . . . . . . . . . . 20 26 . . . . . Robots Disrupted 2 | . 1 . . . . . . . . . 1 . . . . . . . Combat Hostiles 1 | . . . . . . . . . . . 1 . . . . . . . Robots Corrupted 5 | . . . . . . . . . . 3 . . . 1 . . . 1 Combat Hostiles 5 | . . . . . . . . . . 3 . . . 1 . . . 1 Parts Fried 10 | . 2 . . . . . 1 . . . 1 . . . 2 . 3 1 Impact Corruptions . | . . . . . . . . . . . . . . . . . . . Robots Melted 16 | . 1 . . . . . 1 . . . . 2 2 . 2 1 7 . Combat Hostiles 14 | . 1 . . . . . . . . . . 2 1 . 2 1 7 . Parts Melted 73 | 5 7 2 . 1 . . 4 . . 1 1 12 3 . 11 9 16 1 Heat Transferred 29301 | 925 2516 555 349 225 . . 686 . . 199 1201 5185 1550 150 5552 2854 6688 666 Parts Sabotaged 3 | . . . . . . . . . . . . . . . . . 3 . Parts Stolen . | . . . . . . . . . . . . . . . . . . . Parts Stripped . | . . . . . . . . . . . . . . . . . . . Power Chain Reactions 10 | . 8 . . . . . 1 . . 1 . . . . . . . . Alert | -11 -10 -10 -10 -8 -8 -6 -6 -6 -6 -6 -5 -5 -5 -5 -5 -4 -4 -3 ------- Run | Yrd Mat Min Sub Rec Scr Fac Low Low Zio Dee Pro Fac Upp Upp War Pro Fac Res Maximum Alert Level 4 | . 2 1 . . . . . . . . . 2 . . . . 4 2 Low Security (%) 57 | 100 66 83 . 100 . 100 . . . . . 43 . . . . 23 . Level 1 22 | . 24 16 . . . . . . . . . 39 . . . . 47 3 Level 2 17 | . 8 . . . . . . . . . . 17 . . . . 15 96 Level 3 . | . . . . . . . . . . . . . . . . . 5 . Level 4 1 | . . . . . . . . . . . . . . . . . 9 . Level 5 . | . . . . . . . . . . . . . . . . . . . High Security . | . . . . . . . . . . . . . . . . . . . Max Security . | . . . . . . . . . . . . . . . . . . . Peak Influence 1274 | 10 424 248 . 144 . 92 . . . . . 562 . . . . 1274 684 Initial 621 | . . 159 . 9 . . . . . . . 27 . . . . 75 621 Average 198 | 1 114 80 . 43 . 30 . . . . . 208 . . . . 381 523 Influence Increases 7457 | 45 765 164 316 450 . 165 232 56 . . 287 940 220 246 496 375 1882 818 Destroy 0b10 Robot/C 3980 | . 340 100 180 160 . 40 180 40 . . 160 440 200 180 480 340 900 240 Destroy 0b10 Robot/NC 360 | 45 65 15 . 10 . 15 . . . . . 75 5 . 5 5 75 45 Destroy Leader 534 | . 80 20 . . . 20 10 10 . . 20 118 . 20 . 30 164 42 Allied During Kill 169 | . . . 16 13 . 32 12 6 . . 2 . . 31 11 . 46 . Trap Triggered on 0b10 20 | . 10 . . . . . . . . . . 10 . . . . . . Successful Hack 166 | . 35 . . 40 . 30 . . . . . 27 . . . . . 34 Select Force Hacks 300 | . 60 . . 210 . . . . . . . 30 . . . . . . Disable Machine 600 | . 75 . . . . 15 . . . . . 75 . . . . 405 30 Destroy Structure 563 | . 55 29 . 2 . 13 . . . . . 150 . . . . 172 142 Lose Combat Pursuer 765 | . 45 . 120 15 . . 30 . . . 105 15 15 15 . . 120 285 Influence Decreases 6780 | 45 357 572 296 459 11 115 282 56 . . 243 432 720 289 173 587 818 1325 Entered New Map 1472 | . . 249 . 11 11 . 19 . . . . 17 205 11 9 332 45 563 Time Decay 4458 | 45 357 313 286 358 . 95 223 56 . . 243 405 495 258 104 255 513 452 Lost Part 610 | . . 10 10 . . . . . . . . 10 20 . 40 . 220 300 Lost Ally 240 | . . . . 90 . 20 40 . . . . . . 20 20 . 40 10 Squads Dispatched 38 | . 5 . . . . 1 . . . . 1 11 . . . . 12 8 Investigation 8 | . 5 . . . . . . . . . . 2 . . . . 1 . Extermination 8 | . . . . . . . . . . . . 3 . . . . 3 2 Reinforcement 12 | . . . . . . . . . . . . 5 . . . . 5 2 Assault 6 | . . . . . . . . . . . 1 1 . . . . 3 1 Garrison 4 | . . . . . . 1 . . . . . . . . . . . 3 Intercept . | . . . . . . . . . . . . . . . . . . . Searches Triggered . | . . . . . . . . . . . . . . . . . . . Construction Impeded 5 | . . . . . . . . . . . . 2 . . . . 2 1 Haulers Reinforced 3 | . . . . . . . . . . . . 2 . . . . 1 . Active Scanning Responses . | . . . . . . . . . . . . . . . . . . . Cargo Convoy Interrupts 1 | . . . . . . . . . . . . . . . . . . 1 Stealth | -11 -10 -10 -10 -8 -8 -6 -6 -6 -6 -6 -5 -5 -5 -5 -5 -4 -4 -3 --------- Run | Yrd Mat Min Sub Rec Scr Fac Low Low Zio Dee Pro Fac Upp Upp War Pro Fac Res Distress Signals 10 | . . . . . . . . . . . . 3 . . 1 . 3 3 Communications Jammed . | . . . . . . . . . . . . . . . . . . . Distress Signals . | . . . . . . . . . . . . . . . . . . . Times Spotted 412 | . 26 5 19 10 4 1 15 2 . 83 28 30 13 12 32 17 66 49 Peak Tracking Total 37 | . 3 3 5 4 5 1 5 1 . 37 7 3 6 3 15 7 10 15 Tactical Retreats 35 | . 3 . 3 1 1 . 2 . . 5 4 1 1 1 . . 7 6 Traps | -11 -10 -10 -10 -8 -8 -6 -6 -6 -6 -6 -5 -5 -5 -5 -5 -4 -4 -3 ------- Run | Yrd Mat Min Sub Rec Scr Fac Low Low Zio Dee Pro Fac Upp Upp War Pro Fac Res Traps Triggered 5 | . 3 . . . . . . . . . . . . . . . 1 1 Indirectly 2 | . 2 . . . . . . . . . . . . . . . . . Trap Hack Attempts . | . . . . . . . . . . . . . . . . . . . Triggered . | . . . . . . . . . . . . . . . . . . . Disarmed . | . . . . . . . . . . . . . . . . . . . Reprogrammed 1 | . 1 . . . . . . . . . . . . . . . . . Reused 2 | . 1 . . . . . . . . . . 1 . . . . . . Traps Extracted . | . . . . . . . . . . . . . . . . . . . Installed 2 | . . . . . . . . . . . 1 1 . . . . . . Triggered 2 | . 1 . . . . . . . . . . 1 . . . . . . Most Traps Carried 2 | . . . . . . . . . . . 2 1 . . . . . . Machines | -11 -10 -10 -10 -8 -8 -6 -6 -6 -6 -6 -5 -5 -5 -5 -5 -4 -4 -3 ---------- Run | Yrd Mat Min Sub Rec Scr Fac Low Low Zio Dee Pro Fac Upp Upp War Pro Fac Res Machines Disabled 55 | . 5 . 4 . 5 1 1 . 2 3 . 5 . . . . 27 2 Max in Single Turn 4 | . 1 . 1 . 1 . 1 . 1 2 . 4 . . . . 4 2 Garrison Access 1 | . . . . . . . . . . . . 1 . . . . . . Machines Repaired . | . . . . . . . . . . . . . . . . . . . Machines Dismantled . | . . . . . . . . . . . . . . . . . . . Machines Sabotaged . | . . . . . . . . . . . . . . . . . . . Overloaded Fab Kills . | . . . . . . . . . . . . . . . . . . . Hacking | -11 -10 -10 -10 -8 -8 -6 -6 -6 -6 -6 -5 -5 -5 -5 -5 -4 -4 -3 --------- Run | Yrd Mat Min Sub Rec Scr Fac Low Low Zio Dee Pro Fac Upp Upp War Pro Fac Res Machines Accessed 71 | . 10 . 1 15 9 1 1 . . . . 7 2 1 11 1 8 4 Terminals 25 | . 7 . . 6 . 1 1 . . . . 3 . . . 1 4 2 Fabricators 2 | . . . . . . . . . . . . 1 . . . . . 1 Repair Stations 3 | . 1 . . . . . . . . . . . . . . . 1 1 Recycling Units 11 | . 2 . . 7 . . . . . . . 1 . . . . 1 . Scanalyzers 2 | . . . . . . . . . . . . 1 . . . . 1 . Garrison Access 2 | . . . . . . . . . . . . 1 . . . . 1 . Total Hacks 232 | . 35 . 9 55 65 3 5 . . . . 18 3 1 18 1 13 6 Successful 184 | . 21 . 9 45 65 2 5 . . . . 10 3 1 18 1 2 2 Failed 46 | . 13 . . 10 . 1 . . . . . 7 . . . . 11 4 Catastrophic 9 | . 2 . . . . . . . . . . 1 . . . . 4 2 Database Lockouts 2 | . 1 . . . . . . . . . . 1 . . . . . . Manual 58 | . 23 . . 25 . 3 . . . . . 5 . . . . 2 . Terminals 81 | . 30 . . 24 . 3 5 . . . . 9 . . . 1 6 3 Fabricators 4 | . . . . . . . . . . . . 3 . . . . . 1 Repair Stations 5 | . 2 . . . . . . . . . . . . . . . 1 2 Recycling Units 13 | . 3 . . 7 . . . . . . . 1 . . . . 2 . Scanalyzers 5 | . . . . . . . . . . . . 4 . . . . 1 . Garrison Access 4 | . . . . . . . . . . . . 1 . . . . 3 . Terminal Hacks 147 | . 10 . 9 31 65 . 5 . . . . 2 3 1 18 1 1 1 Record 111 | . . . 8 24 59 . 5 . . . . . 2 . 12 1 . . Part Schematic 2 | . . . . 2 . . . . . . . . . . . . . . Robot Schematic 1 | . . . . 1 . . . . . . . . . . . . . . Robot Analysis 11 | . 2 . . 2 6 . . . . . . 1 . . . . . . Prototype ID Bank 8 | . 3 . . 1 . . . . . . . . . . 4 . . . Open Door 4 | . . . . . . . . . . . . . 1 1 2 . . . Branch Access Points 2 | . . . . . . . . . . . . 1 . . . . . 1 Terminal Index 2 | . 1 . . 1 . . . . . . . . . . . . . . Alert Level 1 | . . . . . . . . . . . . . . . . . 1 . Locate Traps 1 | . 1 . . . . . . . . . . . . . . . . . Reprogram Traps 1 | . 1 . . . . . . . . . . . . . . . . . Zone Layout 2 | . 2 . . . . . . . . . . . . . . . . . Proto ID Catalog 1 | . . . 1 . . . . . . . . . . . . . . . Fabricator Hacks 3 | . . . . . . . . . . . . 2 . . . . . 1 Network Status 1 | . . . . . . . . . . . . 1 . . . . . . Build 2 | . . . . . . . . . . . . 1 . . . . . 1 Repair Station Hacks 1 | . 1 . . . . . . . . . . . . . . . . . Scan Component 1 | . 1 . . . . . . . . . . . . . . . . . Recycling Unit Hacks . | . . . . . . . . . . . . . . . . . . . Scanalyzer 2 | . . . . . . . . . . . . 2 . . . . . . Insert Component 1 | . . . . . . . . . . . . 1 . . . . . . Analyze 1 | . . . . . . . . . . . . 1 . . . . . . Garrison Access Hacks 1 | . . . . . . . . . . . . 1 . . . . . . Seal Access 1 | . . . . . . . . . . . . 1 . . . . . . Unauthorized Hacks 30 | . 10 . . 14 . 2 . . . . . 3 . . . . 1 . Terminals 17 | . 8 . . 7 . 2 . . . . . . . . . . . . Botnet 4 | . 1 . . 2 . 1 . . . . . . . . . . . . Operators 2 | . 1 . . . . 1 . . . . . . . . . . . . Skim 11 | . 6 . . 5 . . . . . . . . . . . . . . Fabricators 1 | . . . . . . . . . . . . 1 . . . . . . Haulers 1 | . . . . . . . . . . . . 1 . . . . . . Repair Stations . | . . . . . . . . . . . . . . . . . . . Recycling Units 11 | . 2 . . 7 . . . . . . . 1 . . . . 1 . Recyclers 1 | . . . . . . . . . . . . 1 . . . . . . Tunnel 9 | . 2 . . 7 . . . . . . . . . . . . . . Scrapoids 1 | . . . . . . . . . . . . . . . . . 1 . Scanalyzers 1 | . . . . . . . . . . . . 1 . . . . . . Extract 1 | . . . . . . . . . . . . 1 . . . . . . Garrison Access . | . . . . . . . . . . . . . . . . . . . Data Cores Recovered 1 | . 1 . . . . . . . . . . . . . . . . . Used . | . . . . . . . . . . . . . . . . . . . Hacking Detections 34 | . 8 . . 6 . 1 1 . . . . 6 . . . . 8 4 Full Trace Events 3 | . 1 . . . . . 1 . . . . 1 . . . . . . Feedback Events 1 | . . . . . . . . . . . . 1 . . . . . . Corruption 1 | . . . . . . . . . . . . 1 . . . . . . Feedback Blocked . | . . . . . . . . . . . . . . . . . . . Robot Schematics Acquired 1 | . . . . 1 . . . . . . . . . . . . . . Robots Built . | . . . . . . . . . . . . . . . . . . . Authchips . | . . . . . . . . . . . . . . . . . . . Time . | . . . . . . . . . . . . . . . . . . . Total Robot Build Rating . | . . . . . . . . . . . . . . . . . . . Part Schematics Acquired 5 | . . . . 2 . . . . . . . 3 . . . . . . Parts Built 3 | . . . . . . . . . . . . 1 . . . . . 2 Authchips . | . . . . . . . . . . . . . . . . . . . Time 115 | . . . . . . . . . . . . 69 . . . . . 46 Total Part Build Rating 27 | . . . . . . . . . . . . 9 . . . . . 18 Parts Repaired . | . . . . . . . . . . . . . . . . . . . Time . | . . . . . . . . . . . . . . . . . . . Parts Recycled . | . . . . . . . . . . . . . . . . . . . Recycled Matter . | . . . . . . . . . . . . . . . . . . . Retrieved Matter . | . . . . . . . . . . . . . . . . . . . Retrieved Components . | . . . . . . . . . . . . . . . . . . . Parts Scanalyzed 1 | . . . . . . . . . . . . 1 . . . . . . Part Schematics Acquired 1 | . . . . . . . . . . . . 1 . . . . . . Parts Damaged . | . . . . . . . . . . . . . . . . . . . Bothacking | -11 -10 -10 -10 -8 -8 -6 -6 -6 -6 -6 -5 -5 -5 -5 -5 -4 -4 -3 ------------ Run | Yrd Mat Min Sub Rec Scr Fac Low Low Zio Dee Pro Fac Upp Upp War Pro Fac Res Used RIF Installer . | . . . . . . . . . . . . . . . . . . . Robots Hacked 1 | . . . . . . . . . . . . . . . 1 . . . Non-combat . | . . . . . . . . . . . . . . . . . . . Combat 1 | . . . . . . . . . . . . . . . 1 . . . Robot Hacks Applied 1 | . . . . . . . . . . . . . . . 1 . . . parse_system 1 | . . . . . . . . . . . . . . . 1 . . . Relay Couplers Released 3 | . . . . . . . . . . . . 3 . . . . . . Programmers 3 | . . . . . . . . . . . . 3 . . . . . . Fabnet Peak Effective % . | . . . . . . . . . . . . . . . . . . . Robots Rewired 13 | . . . . 8 . . . . . . 3 . 2 . . . . . Allies Hacked . | . . . . . . . . . . . . . . . . . . . Hacks Repelled . | . . . . . . . . . . . . . . . . . . . Allies | -11 -10 -10 -10 -8 -8 -6 -6 -6 -6 -6 -5 -5 -5 -5 -5 -4 -4 -3 -------- Run | Yrd Mat Min Sub Rec Scr Fac Low Low Zio Dee Pro Fac Upp Upp War Pro Fac Res Total Allies 27 | . . 2 . 8 6 . 1 . . . 3 . 2 . . . 5 . Largest Group 9 | . . 2 2 5 9 5 4 1 1 1 2 . 2 2 1 . 5 . Highest-Rated Group 384 | . . 43 43 103 384 273 226 102 102 102 59 . 58 58 29 . 238 . Highest-Rated Ally 102 | . . 31 31 27 85 85 102 102 102 102 47 . 29 29 29 . 50 . Total Orders 17 | . . . . . 3 . 2 . . 8 . . 2 . . . 2 . STAY 7 | . . . . . 2 . 1 . . 4 . . . . . . . . FOLLOW 5 | . . . . . . . 1 . . 4 . . . . . . . . GUARD 1 | . . . . . 1 . . . . . . . . . . . . . EXPLORE 3 | . . . . . . . . . . . . . 2 . . . 1 . RETURN 1 | . . . . . . . . . . . . . . . . . 1 . Ally Attacks 254 | . . . 23 15 41 25 29 3 . 32 22 . . 23 6 . 35 . Total Damage 5185 | . . . 333 299 827 367 957 63 . 440 486 . . 339 96 . 978 . Kills 53 | . . . 5 6 11 2 4 1 . 15 . . . 4 . . 5 . Allies Corrupted 2 | . . . . . . . 1 . . 1 . . . . . . . . Allies Melted 6 | . . . . . 3 . 1 . . . . . 1 . 1 . . . Intel | -11 -10 -10 -10 -8 -8 -6 -6 -6 -6 -6 -5 -5 -5 -5 -5 -4 -4 -3 ------- Run | Yrd Mat Min Sub Rec Scr Fac Low Low Zio Dee Pro Fac Upp Upp War Pro Fac Res Active Infowar (turns) 26888 | 10 2030 37 4769 1208 . 213 1828 1476 1261 1135 1183 1470 2077 1230 1777 2237 1819 1128 Optics 34 | . . . . . . . . . . . . . . . . . . 34 Sensors 13211 | . . . . 2 . . 946 1470 1261 1130 1181 75 1822 1230 889 2221 645 339 Terrain 1391 | . . . . . . . . . . 835 . . . . . . 556 . Structural 17075 | . . . 2528 . . 213 1505 1470 1218 1135 1182 75 2040 1226 1576 2157 323 427 Seismic 13023 | 10 2030 37 2241 1206 . . 1827 1471 1222 294 1183 1470 32 . . . . . Decoding 2641 | . . . . . . . . . . . . . . . . . 1794 847 Machine Analysis 1076 | . . . . . . . . . . . . . . . . . . 1076 Cloaking 1 | . . . . . . . . . . . . . . . . . . 1 Robot Analysis Total 11 | . 2 . . 2 6 . . . . . . 1 . . . . . . Derelict Logs Recovered 19 | . . 1 2 . 5 . 1 2 2 . 1 . 2 1 . 2 . . Drone Launches 9 | . . . . . . . . . . . . . 4 . . . 3 2 Drone Recoveries 6 | . . . . . . . . . . . . . 2 . . . 3 1 Decoded 0b10 Intel 168 | . . . . . . . . . . . . . . . . . 105 63 Items 168 | . . . . . . . . . . . . . . . . . 105 63 Exploration | -11 -10 -10 -10 -8 -8 -6 -6 -6 -6 -6 -5 -5 -5 -5 -5 -4 -4 -3 ------------- Run | Yrd Mat Min Sub Rec Scr Fac Low Low Zio Dee Pro Fac Upp Upp War Pro Fac Res Turns Passed 42782 | 223 2030 1111 4786 2079 7756 326 2437 1650 1278 3316 2803 1886 2584 1230 1820 2482 1857 1128 Spaces Moved 21920 | 100 997 514 2690 1148 4226 222 1682 1187 1059 1712 790 688 1104 610 1006 955 733 497 Core 224 | 3 . . . . 3 . . . . . . . . . . . . 218 Treads 8873 | 97 997 514 2690 1148 3092 . . . . . . . . . . . 71 264 Legs 1469 | . . . . . . . . . . . 233 169 281 . 50 652 69 15 Wheels 11354 | . . . . . 1131 222 1682 1187 1059 1712 557 519 823 610 956 303 593 . Hover . | . . . . . . . . . . . . . . . . . . . Flight . | . . . . . . . . . . . . . . . . . . . Fastest Speed 50 | 50 160 160 160 160 90 110 110 110 110 100 120 120 189 190 130 120 130 50 Average Speed 155 | 156 160 160 160 160 157 110 110 110 110 110 177 185 200 190 162 235 202 155 Slowest Speed 500 | 160 160 160 160 160 500 110 110 110 110 170 240 240 270 190 360 420 480 250 Overloaded Moves . | . . . . . . . . . . . . . . . . . . . Propulsion Burnouts . | . . . . . . . . . . . . . . . . . . . Robots Hopped . | . . . . . . . . . . . . . . . . . . . Potential Cave-ins 2 | . . . . . . . . . . . . . . . . . . 2 Cave-ins Triggered . | . . . . . . . . . . . . . . . . . . . Exploration Rate (%) 71 | 6 98 100 98 98 95 4 97 99 90 88 66 19 97 75 91 98 25 18 Regions Visited 18 Branch Regions 13 Pre-discovered Areas 18 | . 3 1 . 9 1 . 1 . 1 . . . . . . 2 . . Known Exits Taken 7 | . . 1 . 1 . 1 . . . . 1 1 . 1 . 1 . . Unknown Exits Taken 11 | 1 1 . 1 . 1 . 1 1 1 1 . . 1 . 1 . 1 . Scrap Searched 35 | . . 2 8 . 5 . 4 4 1 . 3 . 3 4 . 1 . . Spaces Dug 106 | . 1 11 32 . 1 3 . . . 8 . 8 8 1 . . . 33 Terrain Destroyed 711 | . 57 32 148 1 1 3 28 5 1 45 12 80 55 40 23 . 85 95 Melee 4 | . . . . . 1 3 . . . . . . . . . . . . Projectile 155 | . 3 . . 1 . . . 5 1 23 12 52 21 3 . . 5 29 AOE 552 | . 54 32 148 . . . 28 . . 22 . 28 34 37 23 . 80 66 Terrain Rammed . | . . . . . . . . . . . . . . . . . . . Walls Destroyed . | . . . . . . . . . . . . . . . . . . . Machines Disabled . | . . . . . . . . . . . . . . . . . . . Actions | -11 -10 -10 -10 -8 -8 -6 -6 -6 -6 -6 -5 -5 -5 -5 -5 -4 -4 -3 --------- Run | Yrd Mat Min Sub Rec Scr Fac Low Low Zio Dee Pro Fac Upp Upp War Pro Fac Res Total 29800 | 129 1316 778 3100 1359 5340 289 2238 1525 1165 3044 2165 1161 1398 663 1181 1173 986 790 Wait 6134 | . 241 233 308 151 927 23 441 314 74 1120 1277 288 199 23 126 196 92 101 Move 21902 | 99 996 513 2689 1147 4225 221 1681 1186 1058 1711 789 687 1103 609 1005 954 732 497 Hop . | . . . . . . . . . . . . . . . . . . . Pick Up 347 | 4 14 6 11 4 90 17 38 5 6 32 12 34 8 5 11 4 22 24 Fast Attach 99 | 7 . 1 6 1 10 1 1 . 2 24 1 5 4 2 4 1 12 17 Attach 127 | . . 1 2 1 2 7 1 . . 11 11 12 4 . 7 4 30 34 Detach 29 | . . . . . . 4 . . . 1 3 4 . . . 1 4 12 Swap 164 | 1 5 3 23 5 1 8 20 12 14 27 . 15 9 3 3 1 9 5 Drop 350 | 1 3 6 19 4 80 1 34 5 8 52 15 31 11 7 17 2 21 33 Fire 510 | 17 56 15 42 15 . . 18 3 3 60 17 82 26 14 6 10 64 62 Melee 31 | . . . . . 5 7 4 . . 6 . . 8 . 1 . . . Ram . | . . . . . . . . . . . . . . . . . . . Kick 7 | . . . . . . . . . . . . 2 . . 1 . . 4 Crush 2 | . 1 . . . . . . . . . . . . . . . . 1 Escape Stasis . | . . . . . . . . . . . . . . . . . . . Rewire 95 | . . . . 31 . . . . . . 38 . 26 . . . . . Trap 2 | . . . . . . . . . . . 1 1 . . . . . . Miscellaneous 1 | . . . . . . . . . . . 1 . . . . . . . Route ------- -11/Scrapyard -10/Materials (discovered 6 exits: *Mat x3 / [*Min x2] / *Sub) -10/Mines (discovered 3 exits: *Mat x2 / *Sub) -10/Subcaves (discovered 4 exits: [*Mat x2] / *Rec / *Scr) -8/Recycling (discovered 2 exits: *Fac / *Scr) -8/Scraptown (discovered 2 exits: *Fac x2) -6/Factory -6/Lower Caves -6/Lower Caves (discovered 2 exits: *Fac / *Zio) -6/Zion (discovered 2 exits: [*Dee] / [*Pro]) -6/Deep Caves -5/Proximity Caves -5/Factory (discovered 6 exits: Fac x2 / *Upp x2 / *Ext x2) -5/Upper Caves -5/Upper Caves (discovered 2 exits: *Fac / *War) -5/Warlord -4/Proximity Caves -4/Factory -3/Research (discovered 4 exits: *Res x2 / Qua x2) History --------- Turn | Location | Event 2 | -11/Scrapyard | Met Revision 17 8 | -11/Scrapyard | Discovered new exit (range 15) 224 | -11/Scrapyard | Entered Materials 316 | -10/Materials | Build established: Mutant 457 | -10/Materials | Discovered new exit (range 8) 678 | -10/Materials | Discovered new exit (range 14) 743 | -10/Materials | Discovered new exit (range 10) 820 | -10/Materials | Discovered new exit (range 8) 1334 | -10/Materials | Central database locked down 1415 | -10/Materials | Discovered new exit (range 7) 1474 | -10/Materials | Discovered new exit (range 8) 1632 | -10/Materials | Learned location of 2 exits from Mines 1666 | -10/Materials | Learned location of 2 exits from Mines 1691 | -10/Materials | Learned location of 1 exit from Storage 1707 | -10/Materials | Learned Storage emergency access door positions 1713 | -10/Materials | Learned location of Mines (-8) 2254 | -10/Materials | Entered Mines 2255 | -10/Mines | Identified exit to Materials 2256 | -10/Mines | Identified exit to Subcaves 2259 | -10/Mines | Core integrity fell below 50% 2291 | -10/Mines | Received a Rocket Launcher from a helpful Derelict 2445 | -10/Mines | Found a hidden stash of uninstalled traps 2468 | -10/Mines | A weapon hastily lodged in a ceiling crevice suddenly fell to the ground 2697 | -10/Mines | Found a damaged Exp. Sensor Array with a note attached 2700 | -10/Mines | Found Prototype Device 3365 | -10/Mines | Entered Subcaves 3365 | -10/Subcaves | Accompanied by 2 allies 3366 | -10/Subcaves | Approached by a straggling Scientist 3370 | -10/Subcaves | Led the pair of lost Derelicts to an unsafe place 3540 | -10/Subcaves | A swath of the cavern ceiling suddenly collapsed 3568 | -10/Subcaves | Shifting Twisted Machinery released Sub. Laser 3589 | -10/Subcaves | Shifting Twisted Machinery released Shrapnel Trap 3991 | -10/Subcaves | Disturbed a concealed Subdweller 4177 | -10/Subcaves | Discovered new exit (range 17) 4469 | -10/Subcaves | Visited 4L-MR0's lab 4490 | -10/Subcaves | Found Gun Armor 4544 | -10/Subcaves | Discovered new exit (range 16) 5679 | -10/Subcaves | Disturbed a concealed Subdweller 5861 | -10/Subcaves | A swath of the cavern ceiling suddenly collapsed 6026 | -10/Subcaves | Discovered new exit (range 5) 6472 | -10/Subcaves | Scientist uncovered a shortcut to Scraptown 6517 | -10/Subcaves | Learned Materials garrison access intel 6627 | -10/Subcaves | Shifting Twisted Machinery released Spk. Treads 6627 | -10/Subcaves | Shifting Twisted Machinery released Mak. Hacking Suite 7874 | -10/Subcaves | Ambushed by Subdweller buried in earth 8151 | -10/Subcaves | Entered Recycling 8152 | -8/Recycling | Met a Zionite searching for Scraptown 8301 | -8/Recycling | Scanned before Scraplab entrance 9271 | -8/Recycling | Build established: Commander-Mutant 9308 | -8/Recycling | Core integrity fell below 20% 9325 | -8/Recycling | Lost 3 allies 9359 | -8/Recycling | Identified Exp. Sensor Array 9417 | -8/Recycling | Discovered new exit (range 5) 9771 | -8/Recycling | Learned location of Zion (-6) 9786 | -8/Recycling | Build established: Mutant 9834 | -8/Recycling | Learned Factory emergency access door positions 9885 | -8/Recycling | Learned location of 1 exit from Extension 9925 | -8/Recycling | Learned 2 Storage zone layouts 9956 | -8/Recycling | Identified exit to Scraptown 9996 | -8/Recycling | Learned Storage stockpile data 10230 | -8/Recycling | Entered Scraptown 10230 | -8/Scraptown | Accompanied by 3 allies 10642 | -8/Scraptown | Discovered new exit (range 7) 10747 | -8/Scraptown | Scanned Subdweller tech in exchange for log data 10752 | -8/Scraptown | Learned 12 Research zone layouts 10754 | -8/Scraptown | Learned Research stockpile data 10755 | -8/Scraptown | Learned location of Extension (-5) 10757 | -8/Scraptown | Learned Factory security intel 10795 | -8/Scraptown | Visited Spacefarers 10866 | -8/Scraptown | Visited Shadow of the Wyrm 10891 | -8/Scraptown | Visited Symbiants 11045 | -8/Scraptown | Visited Awakened 11098 | -8/Scraptown | Visited Comm Corps 11435 | -8/Scraptown | Visited Cyclists 11477 | -8/Scraptown | Visited Fellowship of the Rings 11533 | -8/Scraptown | Visited UFD Registry 11533 | -8/Scraptown | Registered with UFD as "Protomind" 11590 | -8/Scraptown | Visited Analyses Database 11690 | -8/Scraptown | Entered Cyclist Reading Room 11770 | -8/Scraptown | Visited Botcube Research 11802 | -8/Scraptown | Visited Derelict Rescue Squad 11846 | -8/Scraptown | Visited Junk Repository 12129 | -8/Scraptown | Visited Junk Repository 12170 | -8/Scraptown | Visited DA-N13 Charitable Foundation 12191 | -8/Scraptown | Found DCF Scrap (27 items) 12220 | -8/Scraptown | Visited Observation Area 12287 | -8/Scraptown | Visited Curators Association 12325 | -8/Scraptown | Visited Scrapoid Pod Storage 12356 | -8/Scraptown | Visited Science Testing Area 12469 | -8/Scraptown | Discovered new exit (range 5) 12904 | -8/Scraptown | Found DRS Beacon 12952 | -8/Scraptown | Found Lrg. Botcube 12970 | -8/Scraptown | Build established: Hauler-Mutant 13076 | -8/Scraptown | Found Scrapoid Pod 14418 | -8/Scraptown | Build established: Mutant 14537 | -8/Scraptown | Scrapoid Pod released 08S05-D (x5) 15217 | -8/Scraptown | Build established: Derelict-Mutant 16218 | -8/Scraptown | Found Scrap Suit 16220 | -8/Scraptown | Found Scrap Suit 16591 | -8/Scraptown | Lrg. Botcube activated 16623 | -8/Scraptown | Lrg. Botcube completed mutation into treaded form, armed with 1 gun, 2 cannons. 16874 | -8/Scraptown | Build established: Commander-Mutant 17483 | -8/Scraptown | Met Optimus 17483 | -8/Scraptown | Accepted into 0bPrime 17883 | -8/Scraptown | Civil war broke out across Scraptown 17889 | -8/Scraptown | Found Ballwheel 17899 | -8/Scraptown | Found Vmp. Humpback 17964 | -8/Scraptown | Lost 9 allies 17986 | -8/Scraptown | Entered Factory 17986 | -6/Factory | Accompanied by 5 allies 17986 | -6/Factory | Evolved 8 slots: Propulsion x4, Utility x4 18015 | -6/Factory | Discovered new exit (range 5) 18200 | -6/Factory | Garrison activated, responded to threat 18286 | -6/Factory | Identified exit to Lower Caves 18306 | -6/Factory | Build established: Hauler-Mutant 18312 | -6/Factory | Entered Lower Caves 18312 | -6/Lower Caves | Accompanied by 4 allies 18315 | -6/Lower Caves | Ambushed by wild Derelicts 18376 | -6/Lower Caves | Attracted the attention of an 0b10 base 18391 | -6/Lower Caves | Destroyed Large Mutated Botcube 18395 | -6/Lower Caves | Found Lrg. Botcube 18422 | -6/Lower Caves | Lost 3 allies 18436 | -6/Lower Caves | Found Scrap Suit 18438 | -6/Lower Caves | Found Scrap Suit 18444 | -6/Lower Caves | Found DCF Scrap (11 items) 18466 | -6/Lower Caves | Encountered a Warlord checkpoint 18486 | -6/Lower Caves | Learned location of 1 exit from Research 18931 | -6/Lower Caves | Lrg. Botcube activated 18967 | -6/Lower Caves | Lrg. Botcube completed mutation into treaded form, armed with 4 guns. 19334 | -6/Lower Caves | Attracted the attention of an 0b10 checkpoint 20438 | -6/Lower Caves | Learned Factory trap positions 20467 | -6/Lower Caves | Entered a destroyed Warlord outpost 20708 | -6/Lower Caves | Discovered new exit (range 8) 20749 | -6/Lower Caves | Entered another Lower Caves area 20749 | -6/Lower Caves | Accompanied by 1 ally 20750 | -6/Lower Caves | Identified exit to Factory 20921 | -6/Lower Caves | Learned Factory non-interactive machine intel 21101 | -6/Lower Caves | Attracted the attention of an 0b10 checkpoint 21565 | -6/Lower Caves | Encountered a Warlord checkpoint 21576 | -6/Lower Caves | Learned location of 1 exit from Factory 21889 | -6/Lower Caves | Discovered new exit (range 16) 22399 | -6/Lower Caves | Entered Zion 22399 | -6/Zion | Accompanied by 1 ally 22496 | -6/Zion | Discovered new exit (range 15) 22885 | -6/Zion | Turned away by Imprinter 22992 | -6/Zion | Learned Factory emergency access door positions 23034 | -6/Zion | Given A8's code to call for help 23041 | -6/Zion | Visited the Megawrench Repair Shop 23192 | -6/Zion | Learned 4 Factory zone layouts 23238 | -6/Zion | Given the Hacking Drone Bay 23238 | -6/Zion | Found Prototype Device 23238 | -6/Zion | Identified Hacking Drone Bay 23565 | -6/Zion | Discovered new exit (range 5) 23567 | -6/Zion | Saw the warning signs outside the Deep Caves entrance 23631 | -6/Zion | Megawrench repaired 9 parts 23677 | -6/Zion | Entered Deep Caves 23677 | -6/Deep Caves | Accompanied by 1 ally 23758 | -6/Deep Caves | Found Surveybot 24 Scanner 23760 | -6/Deep Caves | Found Surveybot 24 Chip 23957 | -6/Deep Caves | Attacked by Z-Imprinter 23971 | -6/Deep Caves | Destroyed Z-Imprinter 24085 | -6/Deep Caves | Found Prototype Protection 24085 | -6/Deep Caves | Identified Zio. Weapon Casing 24128 | -6/Deep Caves | Found Prototype Device 24128 | -6/Deep Caves | Identified Zio. Metafield Generator 24464 | -6/Deep Caves | Z-Facility disabled 24870 | -6/Deep Caves | Discovered new exit (range 8) 25404 | -6/Deep Caves | Build established: Hauler-Skirmisher 25963 | -6/Deep Caves | Spotted AG-08306 25994 | -6/Deep Caves | Destroyed AG-08306 26014 | -6/Deep Caves | Found GOLEM Unit 26233 | -6/Deep Caves | Build established: Hauler-Mutant 26323 | -6/Deep Caves | Spotted AG-73244 26614 | -6/Deep Caves | Found Zio. Weapon Casing 26844 | -6/Deep Caves | Destroyed AG-73244 26850 | -6/Deep Caves | Triggered Deep Caves wall 26852 | -6/Deep Caves | Exposed GOLEM chamber 26874 | -6/Deep Caves | Spotted AS-61558 26875 | -6/Deep Caves | Spotted AS-80538 26878 | -6/Deep Caves | Found Prototype Energy Gun 26893 | -6/Deep Caves | Destroyed 32 combat bots 26925 | -6/Deep Caves | Lost 7 parts (1p1n3u2w) 26991 | -6/Deep Caves | Core integrity fell below 50% 26993 | -6/Deep Caves | Entered Proximity Caves 27027 | -5/Proximity Caves | Lost 4 parts (1u3w) 27926 | -5/Proximity Caves | Build established: Hauler-Golem 28371 | -5/Proximity Caves | Attracted the attention of an 0b10 outpost 28381 | -5/Proximity Caves | Activated DRS Beacon 28416 | -5/Proximity Caves | Core integrity fell below 20% 28612 | -5/Proximity Caves | Identified AWS/Thermal 28902 | -5/Proximity Caves | Build established: Hauler-Mutant 29134 | -5/Proximity Caves | Spotted B-75 Beast 29148 | -5/Proximity Caves | Destroyed B-75 Beast 29171 | -5/Proximity Caves | Lost 3 allies 29761 | -5/Proximity Caves | Learned Factory emergency access door positions 29796 | -5/Proximity Caves | Entered Factory 29796 | -5/Factory | Evolved 2 slots: Utility x1, Weapon x1 29797 | -5/Factory | Identified exit to Factory 29797 | -5/Factory | Identified exit to Extension 29800 | -5/Factory | Loaded intel: 116 trap records 29802 | -5/Factory | Loaded intel: 184 non-interactive machine locations 30266 | -5/Factory | Fabricated Hvy. Shield Leg (x1) 30382 | -5/Factory | Build established: Hauler-Gunner 30399 | -5/Factory | Identified exit to Upper Caves 30611 | -5/Factory | AWS/Thermal suddenly broke down 31585 | -5/Factory | Central database locked down 31596 | -5/Factory | First assault squad dispatched 31682 | -5/Factory | Entered Upper Caves 31688 | -5/Upper Caves | Attracted the attention of an 0b10 checkpoint 31841 | -5/Upper Caves | Learned Factory stockpile data 31861 | -5/Upper Caves | Entered a destroyed Warlord outpost 32205 | -5/Upper Caves | Learned Factory emergency access door positions 32342 | -5/Upper Caves | Build established: Hauler-Mutant 33324 | -5/Upper Caves | Build established: Hauler-Skirmisher 33441 | -5/Upper Caves | Encountered a Warlord checkpoint 33537 | -5/Upper Caves | Discovered new exit (range 37) 33668 | -5/Upper Caves | Attracted the attention of an 0b10 outpost 34266 | -5/Upper Caves | Entered another Upper Caves area 34266 | -5/Upper Caves | Accompanied by 2 allies 34294 | -5/Upper Caves | Encountered a Warlord checkpoint 34373 | -5/Upper Caves | Discovered exit to Factory (range 10) 34718 | -5/Upper Caves | Identified exit to Warlord 35022 | -5/Upper Caves | Attracted the attention of an 0b10 checkpoint 35492 | -5/Upper Caves | Attracted the attention of an 0b10 base 35496 | -5/Upper Caves | Entered Warlord 35496 | -5/Warlord | Accompanied by 1 ally 35601 | -5/Warlord | Discovered new exit (range 9) 35701 | -5/Warlord | System corruption cleaned by Quarantine Array 36185 | -5/Warlord | Attached Gun Armor, gained temporary slots: Weapon x2 36193 | -5/Warlord | Found Prototype Energy Gun 36193 | -5/Warlord | Identified Plasma Storm 36489 | -5/Warlord | Warlord's base attacked by MAIN.C 36501 | -5/Warlord | Build established: Hauler-Tank 36586 | -5/Warlord | Found Prototype Launcher 36589 | -5/Warlord | Found Prototype Energy Gun 36592 | -5/Warlord | Found Prototype Energy Gun 36748 | -5/Warlord | Spotted B-86 Titan 36755 | -5/Warlord | Destroyed B-86 Titan 36776 | -5/Warlord | Destroyed 11 combat bots 36800 | -5/Warlord | Lost 3 allies 36839 | -5/Warlord | Warlord forces counterattacked 36940 | -5/Warlord | Rebuked by Warlord 37164 | -5/Warlord | Warlord base infiltrated, sounded retreat 37204 | -5/Warlord | Build established: Hauler-Skirmisher 37289 | -5/Warlord | Spotted Executioner 37289 | -5/Warlord | Spotted Striker 37289 | -5/Warlord | Spotted Striker 37294 | -5/Warlord | Core integrity fell below 50% 37297 | -5/Warlord | Destroyed Executioner 37316 | -5/Warlord | Entered Proximity Caves 37334 | -4/Proximity Caves | Destroyed 9 combat bots 37342 | -4/Proximity Caves | Lost 4 parts (1p1n2u) 37740 | -4/Proximity Caves | Found Imp. Powered Armor 39099 | -4/Proximity Caves | Received a Behemoth hack from an annoying Tinkerer 39644 | -4/Proximity Caves | Discovered exit to Factory (range 16) 39798 | -4/Proximity Caves | Entered Factory 39798 | -4/Factory | Evolved 2 slots: Power x1, Utility x1 40116 | -4/Factory | Scrapoids reinforcements arrived? 40220 | -4/Factory | Lost 4 allies 40703 | -4/Factory | Build established: Hauler-Tank 41298 | -4/Factory | First assault squad dispatched 41389 | -4/Factory | Identified Vortex Catalyst Activator 41395 | -4/Factory | Identified Vortex Rifle (x2) 41454 | -4/Factory | Destroyed 12 combat bots 41454 | -4/Factory | Lost 4 parts (2n1u1w) 41514 | -4/Factory | Destroyed 8 combat bots 41553 | -4/Factory | Core integrity fell below 50% 41638 | -4/Factory | Discovered new exit (range 8) 41655 | -4/Factory | Entered Research 41655 | -3/Research | Evolved 2 slots: Propulsion x2 41656 | -3/Research | Identified exit to Research 41685 | -3/Research | Lost 9 parts (1p3n2u3w) 41718 | -3/Research | Fabricated Enh. Nova Cannon (x2) 41744 | -3/Research | Identified exit to Quarantine 41905 | -3/Research | First assault squad dispatched 41972 | -3/Research | Build established: Hauler-Mutant 42095 | -3/Research | Discovered exit to Research (range 16) 42202 | -3/Research | Found Prototype Processor 42202 | -3/Research | Identified Exp. Melee Analysis Suite 42372 | -3/Research | Build established: Hauler-Tank 42400 | -3/Research | Garrison activated, responded to threat 42481 | -3/Research | Lost 5 parts (2p2n1u) 42535 | -3/Research | Core integrity fell below 50% 42572 | -3/Research | Core integrity fell below 20% 42575 | -3/Research | Allied Derelicts emerged from ambush trap array 42599 | -3/Research | Lost 19 parts (10n4u5w) 42610 | -3/Research | Found Unknown Launcher 42610 | -3/Research | Identified Fusion Bomb Launcher 42621 | -3/Research | Lost 4 allies 42742 | -3/Research | Cargo convoy interrupted 42743 | -3/Research | Spotted Executioner 42743 | -3/Research | Spotted Executioner 42777 | -3/Research | Lost 3 parts (1n1u1w) 42783 | -3/Research | Destroyed by H-77 Assassin with Coil Gun Last Messages --------------- 42743_ K-01 Serf knocked back. 42743_ H-77 Assassin knocked back. 42743_ Penetrated by Slug. 42743_ Slug penetrates Wall. 42744_ Slug penetrates X-77 Beamer. 42744_ Slug penetrates X-82 Rainmaker. 42746_ Imp. Heavy Siege Treads destroyed. 42749_ System corrupted: Energy discharge (-6). 42754_ W-44 Eye sends out distress signal. 42760_ Acquired 69 matter. 42761_ Acquired 96 matter. 42771_ System corrupted: Energy discharge (-27). 42778_ Penetrated by Slug. 42780_ Slug penetrates Graviton Restrictor. 42780_ Graviton Restrictor disabled. 42781_ Slug penetrates Executioner. 42781_ Slug penetrates Graviton Restrictor. 42781_ Penetrated by Slug. 42781_ Critical hit (Destroy). 42781_ Faulty Multireflex Exoskeleton destroyed. Map ----- +----------------------------------------------------+ | ?????????????????????????????????????????????## | | ????????????????????????????????????????????##" | | ????????????????????????????????????????????#""### | | ????????????????????????????????????????????#"##?? | | ????????????????????????????????????????????#"#??? | | ???????????????????????????????????????????? " ??? | | ??????????????????????????????????????????? ??? | | ?????????????????????????????????????????? ??? | | ????????????????????????????????????????? ?>? | | ????????????????????????????????????????? ?? | | ???????????????????????????????????????? "?? | | ?????????????????????????? ????????????" " " "?? | | ?????????????????????????? ???????????#?#"#"???? | | ?????????????????????????? ???????????#"#"#"#### | | ?????????????????????????# #???????????######### | | ?????????????????????????# #???"""????### | | ?????????????????????????# #???"""????# # | | ?????????????????????????# #???"""????### | | ?????????????????????????# #??????????# # ! | | ?????????????????????????# #??????????# # | | ?????????????????????????+ #????????????# | | ?????????????????????????# ###??######### | | ?????????????????????? + %/% | | ?????????????????????? # ###### ###### | | ??????????????????????#####h#####?# #???## | | ??????????????????????# @ E #?# #???#""###### | | ??????????????????????# hk #?# #???# | | ??????????????????????# """ #?# #???# ##### | | ??????????????????????# """"" #?# #???# #???# | | ??????????????????????# """"" #?# #???# #???# | | ??????????????????????# E ;## #####+##### | | ??????????????????????# ### # ! # | | ?????????????"""?!????# #?# # # | | ?????????????"""??????####+######?# # """ !# | | ?????????????"""?????????# #??????# #] """" # | | ?????????????????????????# #?###??# # """" # | | ????????????????????????##+### #### #| """ # | | ?????????????????=??????# ## # ### | | ???????????!????????????# ## # #?? | | ??????????????????!###### ## #######+##### | | ???????????????????# # # | | ???????????###+##### # """# | | ???????"""G""" # ] """# | | ???? """ """ # """# ! | | ???? # # ! ##### | | ???? # # # "" | | ??? ######+### # "" | | ??? ! ! + "" | | ??? % # "" | | ?? = % % % # | +----------------------------------------------------+ Best States ------------- Heat Dissipation 69 Energy Generation 33 Energy Capacity 1340 Matter Stores 300 Matter Capacity 300 Sight Range 23 Robot Scan Range 20 Terrain Scan Range 24 Terrain Scan Density 2010 Cloak Strength 3 Corruption Containment 12 Armor Coverage 1200 Resistance: KI 30 Resistance: TH 30 Weapon Shielding 100 Phase Shifting 10 Evasion (%) 55 Targeting Accuracy 6 Target Analysis 6 Core Analysis 6 Recoil Reduction 8 Offensive Hacking 22 Defensive Hacking 12 Authchip Count 1 Item Schematics ----------------- Cargo Storage Unit | -8/Recycling | Hacked Imp. Titanium Leg | -8/Recycling | Hacked CPS Tube | -5/Factory | Scanalyzed Weight Redist. System | -5/Factory | Extracted Lrn. Tractor Beam | -5/Factory | Extracted Robot Schematics ------------------ A-02 Transporter | -8/Recycling | Hacked Fabricated ------------ Hvy. Shield Leg | x1 | -5/Factory | Preloaded Enh. Nova Cannon | x2 | -3/Research | Preloaded Repaired ---------- Nothing Alien Tech Used ----------------- None Achievements -------------- None Challenges ------------ None Game ------ Seed HardenedAssaultKit Manual? 0 Play Time 05:08:57 Cumulative 279.3 hours Start 2025.05.31 @ 13:07:20 End 2025.05.31 @ 19:16:19 Sessions 10 Manual Loads 0 Difficulty Rogue Special Mode None Game No. 136 Rogue 136 Adventurer 0 Explorer 0 Win Type - Total 1 Types 0/0/0/0/1/0/0/0/0/0 Lore% 71 Gallery% 74 Achievement% 64 Wizard Run 0 Options --------- Layout 0 ASCII 0 Keyboard 0 Movement Mouse Keybinds 0 Fullscreen 1 Font 24/Smallcaps Map View 183x50 Zoom Use 0% Tactical HUD 1 Map Filters NONE Filters NONE Steam 0 RUN: 2665114d-31ca-4522-b9e4-891c1fa1ecee